[Event "Titled Tuesday Blitz November 14 Late 2023"]
[White "ThePeasant98"]
[Black "Vila Dupla, Aurelio"]
[BlackFideId "2203383"]
[WhiteElo "2159"]
[BlackElo "2201"]
[Result "1/2-1/2"]
[Round "7"]
[TimeControl "180+1"]
[Date "2023.11.14"]
[WhiteClock "0:00:06"]
[BlackClock "0:00:04"]
[Board "124"]

1. d4 {[%clk 0:03:00]}  Nf6 {[%clk 0:02:58]} 2. c4 {[%clk 0:03:01]}  g6 {[%clk 0:02:56]} 3. Nc3 {[%clk 0:03:00]}  d5 {[%clk 0:02:56]} 4. Nf3 {[%clk 0:02:59]}  Bg7 {[%clk 0:02:56]} 5. h4 {[%clk 0:02:58]}  h5 {[%clk 0:02:55]} 6. Bg5 {[%clk 0:02:58]}  dxc4 {[%clk 0:02:47]} 7. e4 {[%clk 0:02:56]}  b5 {[%clk 0:02:40]} 8. e5 {[%clk 0:02:42]}  Nd5 {[%clk 0:02:35]} 9. Nxb5 {[%clk 0:02:41]}  c6 {[%clk 0:02:30]} 10. Nc3 {[%clk 0:02:40]}  Be6 {[%clk 0:02:20]} 11. Qa4 {[%clk 0:02:25]}  Nb6 {[%clk 0:02:13]} 12. Qc2 {[%clk 0:02:17]}  O-O {[%clk 0:02:13]} 13. Be2 {[%clk 0:02:14]}  N8d7 {[%clk 0:01:53]} 14. Rd1 {[%clk 0:02:09]}  Rb8 {[%clk 0:01:38]} 15. O-O {[%clk 0:02:06]}  Re8 {[%clk 0:01:35]} 16. Rfe1 {[%clk 0:01:40]}  Qc7 {[%clk 0:01:35]} 17. Ne4 {[%clk 0:01:35]}  Bf5 {[%clk 0:01:31]} 18. Nfd2 {[%clk 0:01:35]}  c5 {[%clk 0:01:01]} 19. Bxc4 {[%clk 0:01:35]}  Nxc4 {[%clk 0:00:59]} 20. Qxc4 {[%clk 0:01:36]}  Rxb2 {[%clk 0:00:57]} 21. Nxc5 {[%clk 0:01:23]}  Nxc5 {[%clk 0:00:47]} 22. dxc5 {[%clk 0:01:23]}  Bxe5 {[%clk 0:00:43]} 23. Nf3 {[%clk 0:01:07]}  Bg7 {[%clk 0:00:39]} 24. Bc1 {[%clk 0:00:55]}  Rc2 {[%clk 0:00:31]} 25. Qb3 {[%clk 0:00:48]}  Rxc5 {[%clk 0:00:30]} 26. Ng5 {[%clk 0:00:48]}  e6 {[%clk 0:00:26]} 27. Ba3 {[%clk 0:00:41]}  Rc3 {[%clk 0:00:23]} 28. Qa4 {[%clk 0:00:29]}  Rd8 {[%clk 0:00:17]} 29. Rxd8+ {[%clk 0:00:16]}  Qxd8 {[%clk 0:00:16]} 30. Bb2 {[%clk 0:00:16]}  Rc7 {[%clk 0:00:11]} 31. Bxg7 {[%clk 0:00:15]}  Kxg7 {[%clk 0:00:12]} 32. Rd1 {[%clk 0:00:14]}  Qe7 {[%clk 0:00:10]} 33. Qd4+ {[%clk 0:00:13]}  Qf6 {[%clk 0:00:10]} 34. Qxf6+ {[%clk 0:00:08]}  Kxf6 {[%clk 0:00:09]} 35. Rd4 {[%clk 0:00:08]}  e5 {[%clk 0:00:06]} 36. Ra4 {[%clk 0:00:08]}  Kg7 {[%clk 0:00:06]} 37. Ra6 {[%clk 0:00:08]}  f6 {[%clk 0:00:05]} 38. Nf3 {[%clk 0:00:07]}  Kf7 {[%clk 0:00:05]} 39. Kf1 {[%clk 0:00:07]}  Rd7 {[%clk 0:00:05]} 40. Ke1 {[%clk 0:00:06]}  Ke7 {[%clk 0:00:05]} 41. Ke2 {[%clk 0:00:06]}  Kf7 {[%clk 0:00:05]} 42. Ke3 {[%clk 0:00:06]}  Ke7 {[%clk 0:00:05]} 43. Ne1 {[%clk 0:00:05]}  Kf7 {[%clk 0:00:04]} 44. Nf3 {[%clk 0:00:06]}  Rd3+ {[%clk 0:00:03]} 45. Ke2 {[%clk 0:00:06]}  Rd7 {[%clk 0:00:04]} 46. Ke3 {[%clk 0:00:06]} 1/2-1/2


[Site "https://www.chess.com"]

[Event "Titled Tuesday Blitz November 14 Late 2023"]
[White "Desideri, Ricardo Maruchi"]
[Black "Darko-Dimitrijevic"]
[WhiteFideId "2110440"]
[WhiteElo "1986"]
[BlackElo "2185"]
[Result "0-1"]
[Round "7"]
[TimeControl "180+1"]
[Date "2023.11.14"]
[WhiteClock "0:00:00"]
[BlackClock "0:01:13"]
[Board "126"]

1. e4 {[%clk 0:01:42]}  d6 {[%clk 0:02:57]} 2. d4 {[%clk 0:01:41]}  c6 {[%clk 0:02:57]} 3. Nc3 {[%clk 0:01:40]}  Nf6 {[%clk 0:02:57]} 4. Be2 {[%clk 0:01:37]}  Qa5 {[%clk 0:02:51]} 5. f3 {[%clk 0:01:34]}  e5 {[%clk 0:02:51]} 6. dxe5 {[%clk 0:01:28]}  dxe5 {[%clk 0:02:51]} 7. Be3 {[%clk 0:01:25]}  Bb4 {[%clk 0:02:46]} 8. Qd2 {[%clk 0:01:25]}  Be6 {[%clk 0:02:41]} 9. g4 {[%clk 0:01:21]}  O-O {[%clk 0:02:39]} 10. g5 {[%clk 0:01:20]}  Nh5 {[%clk 0:02:39]} 11. Bd3 {[%clk 0:01:11]}  Na6 {[%clk 0:02:31]} 12. Nge2 {[%clk 0:01:10]}  Nc5 {[%clk 0:02:30]} 13. Bxc5 {[%clk 0:01:09]}  Qxc5 {[%clk 0:02:26]} 14. O-O-O {[%clk 0:01:07]}  Rfd8 {[%clk 0:02:24]} 15. Kb1 {[%clk 0:01:06]}  a5 {[%clk 0:02:22]} 16. Qc1 {[%clk 0:01:04]}  Nf4 {[%clk 0:02:17]} 17. Nxf4 {[%clk 0:00:56]}  exf4 {[%clk 0:02:17]} 18. Na4 {[%clk 0:00:46]}  Qxg5 {[%clk 0:02:13]} 19. Rhg1 {[%clk 0:00:37]}  Qe5 {[%clk 0:02:12]} 20. h4 {[%clk 0:00:28]}  Be7 {[%clk 0:02:11]} 21. Nb6 {[%clk 0:00:16]}  Rab8 {[%clk 0:02:07]} 22. h5 {[%clk 0:00:15]}  h6 {[%clk 0:02:01]} 23. Rg2 {[%clk 0:00:15]}  Bf6 {[%clk 0:02:01]} 24. Rdg1 {[%clk 0:00:14]}  Kh8 {[%clk 0:01:58]} 25. Nc4 {[%clk 0:00:09]}  Qc5 {[%clk 0:01:49]} 26. e5 {[%clk 0:00:08]}  Bg5 {[%clk 0:01:44]} 27. Rxg5 {[%clk 0:00:07]}  hxg5 {[%clk 0:01:43]} 28. Rxg5 {[%clk 0:00:08]}  Bxc4 {[%clk 0:01:41]} 29. h6 {[%clk 0:00:07]}  Bxd3 {[%clk 0:01:16]} 30. hxg7+ {[%clk 0:00:05]}  Kg8 {[%clk 0:01:15]} 31. Qxf4 {[%clk 0:00:00]}  Qxc2+ {[%clk 0:01:13]} 0-1


[Site "https://www.chess.com"]

[Event "Titled Tuesday Blitz November 14 Late 2023"]
[White "campochess"]
[Black "Vargas, Mauricio"]
[BlackFideId "4404572"]
[WhiteElo "2183"]
[BlackElo "1846"]
[Result "1-0"]
[Round "7"]
[TimeControl "180+1"]
[Date "2023.11.14"]
[WhiteClock "0:01:51"]
[BlackClock "0:00:30"]
[Board "127"]

1. Nf3 {[%clk 0:02:56]}  d5 {[%clk 0:02:57]} 2. b3 {[%clk 0:02:56]}  c5 {[%clk 0:02:57]} 3. Bb2 {[%clk 0:02:56]}  Nc6 {[%clk 0:02:57]} 4. e3 {[%clk 0:02:56]}  Nf6 {[%clk 0:02:57]} 5. Bb5 {[%clk 0:02:56]}  Bd7 {[%clk 0:02:53]} 6. O-O {[%clk 0:02:54]}  a6 {[%clk 0:02:53]} 7. Be2 {[%clk 0:02:53]}  e6 {[%clk 0:02:50]} 8. d3 {[%clk 0:02:53]}  Bd6 {[%clk 0:02:50]} 9. c4 {[%clk 0:02:53]}  Rc8 {[%clk 0:02:50]} 10. Nbd2 {[%clk 0:02:52]}  Bb8 {[%clk 0:02:48]} 11. Rc1 {[%clk 0:02:52]}  O-O {[%clk 0:02:47]} 12. Re1 {[%clk 0:02:49]}  Qe7 {[%clk 0:02:33]} 13. Nf1 {[%clk 0:02:49]}  Rfe8 {[%clk 0:02:20]} 14. d4 {[%clk 0:02:48]}  b6 {[%clk 0:02:00]} 15. Ne5 {[%clk 0:02:46]}  Ne4 {[%clk 0:01:34]} 16. cxd5 {[%clk 0:02:40]}  exd5 {[%clk 0:01:32]} 17. Nxd7 {[%clk 0:02:35]}  Qxd7 {[%clk 0:01:26]} 18. dxc5 {[%clk 0:02:35]}  bxc5 {[%clk 0:01:22]} 19. Bxa6 {[%clk 0:02:31]}  Qf5 {[%clk 0:01:16]} 20. Qf3 {[%clk 0:02:25]}  Qg6 {[%clk 0:01:01]} 21. Bxc8 {[%clk 0:02:18]}  Rxc8 {[%clk 0:01:00]} 22. Ng3 {[%clk 0:02:15]}  Rd8 {[%clk 0:00:49]} 23. Qf5 {[%clk 0:02:12]}  Qh6 {[%clk 0:00:42]} 24. Qh3 {[%clk 0:01:59]}  Qf6 {[%clk 0:00:30]} 25. Bxf6 {[%clk 0:01:51]} 1-0


[Site "https://www.chess.com"]

[Event "Titled Tuesday Blitz November 14 Late 2023"]
[White "Mariia89"]
[Black "Oliveira, Tiago Batista"]
[BlackFideId "2108291"]
[WhiteElo "2143"]
[BlackElo "2058"]
[Result "1-0"]
[Round "7"]
[TimeControl "180+1"]
[Date "2023.11.14"]
[WhiteClock "0:00:12"]
[BlackClock "0:00:00"]
[Board "130"]

1. d4 {[%clk 0:02:56]}  Nf6 {[%clk 0:02:59]} 2. Nf3 {[%clk 0:02:56]}  g6 {[%clk 0:02:56]} 3. c4 {[%clk 0:02:56]}  Bg7 {[%clk 0:02:54]} 4. Nc3 {[%clk 0:02:57]}  d5 {[%clk 0:02:55]} 5. Bg5 {[%clk 0:02:56]}  Ne4 {[%clk 0:02:50]} 6. cxd5 {[%clk 0:02:56]}  Nxg5 {[%clk 0:02:50]} 7. Nxg5 {[%clk 0:02:57]}  e6 {[%clk 0:02:50]} 8. Nf3 {[%clk 0:02:57]}  exd5 {[%clk 0:02:51]} 9. e3 {[%clk 0:02:58]}  O-O {[%clk 0:02:51]} 10. Be2 {[%clk 0:02:59]}  b6 {[%clk 0:02:34]} 11. Kf1 {[%clk 0:02:56]}  Ba6 {[%clk 0:02:08]} 12. h4 {[%clk 0:02:55]}  Bxe2+ {[%clk 0:02:05]} 13. Qxe2 {[%clk 0:02:55]}  c5 {[%clk 0:02:04]} 14. Rd1 {[%clk 0:02:48]}  c4 {[%clk 0:01:56]} 15. h5 {[%clk 0:02:48]}  Nc6 {[%clk 0:01:50]} 16. hxg6 {[%clk 0:02:47]}  fxg6 {[%clk 0:01:48]} 17. e4 {[%clk 0:02:30]}  Rxf3 {[%clk 0:01:07]} 18. Qxf3 {[%clk 0:02:22]}  Nxd4 {[%clk 0:01:04]} 19. Qh3 {[%clk 0:02:22]}  h6 {[%clk 0:00:55]} 20. Nxd5 {[%clk 0:02:18]}  Qf8 {[%clk 0:00:41]} 21. Qg3 {[%clk 0:01:44]}  Qf7 {[%clk 0:00:35]} 22. Qe3 {[%clk 0:01:22]}  Ne6 {[%clk 0:00:10]} 23. Qd2 {[%clk 0:01:18]}  Rf8 {[%clk 0:00:10]} 24. Rh3 {[%clk 0:01:10]}  Nc5 {[%clk 0:00:10]} 25. Qe2 {[%clk 0:00:52]}  Re8 {[%clk 0:00:08]} 26. Rf3 {[%clk 0:00:26]}  Qe6 {[%clk 0:00:05]} 27. Qxc4 {[%clk 0:00:25]}  Nxe4 {[%clk 0:00:05]} 28. Ne3 {[%clk 0:00:19]}  Qxc4+ {[%clk 0:00:05]} 29. Nxc4 {[%clk 0:00:19]}  Nc5 {[%clk 0:00:04]} 30. b3 {[%clk 0:00:18]}  g5 {[%clk 0:00:02]} 31. Re1 {[%clk 0:00:12]}  b5 {[%clk 0:00:02]} 32. Rxe8+ {[%clk 0:00:12]}  Kh7 {[%clk 0:00:02]} 33. Re7 {[%clk 0:00:12]}  bxc4 {[%clk 0:00:00]} 34. Rff7 {[%clk 0:00:12]} 1-0


[Site "https://www.chess.com"]

[Event "Titled Tuesday Blitz November 14 Late 2023"]
[White "Erigaisi Arjun"]
[Black "Khismatullin, Denis"]
[WhiteFideId "35009192"]
[BlackFideId "4142578"]
[WhiteElo "3061"]
[BlackElo "2982"]
[Result "1/2-1/2"]
[Round "8"]
[TimeControl "180+1"]
[Date "2023.11.14"]
[WhiteClock "0:00:31"]
[BlackClock "0:00:06"]
[Board "1"]

1. c4 {[%clk 0:03:00]}  e6 {[%clk 0:02:58]} 2. Nf3 {[%clk 0:03:00]}  Nf6 {[%clk 0:02:57]} 3. Nc3 {[%clk 0:02:59]}  d5 {[%clk 0:02:57]} 4. e3 {[%clk 0:03:00]}  Be7 {[%clk 0:02:56]} 5. b3 {[%clk 0:02:59]}  O-O {[%clk 0:02:56]} 6. Bb2 {[%clk 0:03:00]}  b6 {[%clk 0:02:55]} 7. cxd5 {[%clk 0:02:53]}  Nxd5 {[%clk 0:02:55]} 8. a3 {[%clk 0:02:45]}  c5 {[%clk 0:02:53]} 9. Qc2 {[%clk 0:02:44]}  Ba6 {[%clk 0:02:52]} 10. Bxa6 {[%clk 0:02:39]}  Nxa6 {[%clk 0:02:51]} 11. h4 {[%clk 0:02:40]}  Qd7 {[%clk 0:02:46]} 12. h5 {[%clk 0:02:34]}  h6 {[%clk 0:02:43]} 13. Ne5 {[%clk 0:02:31]}  Qb7 {[%clk 0:02:35]} 14. O-O-O {[%clk 0:02:19]}  Rac8 {[%clk 0:02:32]} 15. Qe4 {[%clk 0:02:13]}  b5 {[%clk 0:02:23]} 16. Nxd5 {[%clk 0:02:00]}  exd5 {[%clk 0:02:20]} 17. Qg4 {[%clk 0:01:50]}  d4 {[%clk 0:02:19]} 18. Rh3 {[%clk 0:01:45]}  Qd5 {[%clk 0:02:04]} 19. f4 {[%clk 0:01:23]}  Rfd8 {[%clk 0:01:57]} 20. exd4 {[%clk 0:01:11]}  cxd4+ {[%clk 0:01:51]} 21. Kb1 {[%clk 0:01:12]}  Nc5 {[%clk 0:01:51]} 22. Qf3 {[%clk 0:01:02]}  Qe6 {[%clk 0:01:40]} 23. Re1 {[%clk 0:00:54]}  Qf5+ {[%clk 0:01:23]} 24. Ka2 {[%clk 0:00:51]}  Qc2 {[%clk 0:01:14]} 25. Nc6 {[%clk 0:00:49]}  Rxc6 {[%clk 0:00:46]} 26. Qxc6 {[%clk 0:00:50]}  d3 {[%clk 0:00:46]} 27. Rxe7 {[%clk 0:00:35]}  Qxb3+ {[%clk 0:00:43]} 28. Ka1 {[%clk 0:00:31]}  Qd1+ {[%clk 0:00:19]} 29. Ka2 {[%clk 0:00:31]}  Qb3+ {[%clk 0:00:17]} 30. Ka1 {[%clk 0:00:31]}  Qd1+ {[%clk 0:00:08]} 31. Ka2 {[%clk 0:00:31]}  Qb3+ {[%clk 0:00:06]} 1/2-1/2


[Site "https://www.chess.com"]

[Event "Titled Tuesday Blitz November 14 Late 2023"]
[White "Holt, Conrad"]
[Black "Martinez Alcantara, Jose Eduardo"]
[WhiteFideId "2034387"]
[BlackFideId "3805662"]
[WhiteElo "2805"]
[BlackElo "3027"]
[Result "1/2-1/2"]
[Round "8"]
[TimeControl "180+1"]
[Date "2023.11.14"]
[WhiteClock "0:00:12"]
[BlackClock "0:00:07"]
[Board "4"]

1. d4 {[%clk 0:03:00]}  Nf6 {[%clk 0:03:00]} 2. c4 {[%clk 0:03:01]}  e6 {[%clk 0:03:00]} 3. Nc3 {[%clk 0:03:00]}  Bb4 {[%clk 0:03:01]} 4. Qc2 {[%clk 0:03:01]}  d6 {[%clk 0:03:01]} 5. Nf3 {[%clk 0:02:59]}  Nbd7 {[%clk 0:03:00]} 6. g3 {[%clk 0:02:58]}  b6 {[%clk 0:02:59]} 7. Bg2 {[%clk 0:02:58]}  Bb7 {[%clk 0:03:00]} 8. O-O {[%clk 0:02:57]}  Bxc3 {[%clk 0:03:00]} 9. Qxc3 {[%clk 0:02:57]}  O-O {[%clk 0:03:01]} 10. b3 {[%clk 0:02:54]}  h6 {[%clk 0:03:00]} 11. Bb2 {[%clk 0:02:55]}  a6 {[%clk 0:03:00]} 12. Rfe1 {[%clk 0:02:51]}  b5 {[%clk 0:03:00]} 13. Rac1 {[%clk 0:02:48]}  Qb8 {[%clk 0:02:53]} 14. d5 {[%clk 0:02:34]}  e5 {[%clk 0:02:12]} 15. Nh4 {[%clk 0:02:25]}  g6 {[%clk 0:02:13]} 16. Qd2 {[%clk 0:02:09]}  Kg7 {[%clk 0:02:12]} 17. h3 {[%clk 0:02:06]}  bxc4 {[%clk 0:02:10]} 18. bxc4 {[%clk 0:01:55]}  Qd8 {[%clk 0:02:07]} 19. c5 {[%clk 0:01:49]}  Bc8 {[%clk 0:02:03]} 20. c6 {[%clk 0:01:45]}  Nb6 {[%clk 0:01:57]} 21. f4 {[%clk 0:01:43]}  Qe7 {[%clk 0:01:51]} 22. e4 {[%clk 0:01:39]}  Ng8 {[%clk 0:01:12]} 23. fxe5 {[%clk 0:01:29]}  dxe5 {[%clk 0:01:13]} 24. Qc3 {[%clk 0:01:29]}  Re8 {[%clk 0:01:08]} 25. Ba3 {[%clk 0:01:18]}  Qg5 {[%clk 0:01:06]} 26. Rf1 {[%clk 0:01:17]}  Nf6 {[%clk 0:01:04]} 27. Rce1 {[%clk 0:01:14]}  Nh5 {[%clk 0:01:01]} 28. Kh2 {[%clk 0:01:11]}  Rb8 {[%clk 0:00:43]} 29. Qf3 {[%clk 0:01:04]}  Qf6 {[%clk 0:00:38]} 30. Qd3 {[%clk 0:00:46]}  Qg5 {[%clk 0:00:39]} 31. Re2 {[%clk 0:00:42]}  a5 {[%clk 0:00:13]} 32. Ref2 {[%clk 0:00:40]}  f6 {[%clk 0:00:14]} 33. Bc1 {[%clk 0:00:38]}  Ba6 {[%clk 0:00:14]} 34. Qf3 {[%clk 0:00:18]}  Nf4 {[%clk 0:00:15]} 35. Rd1 {[%clk 0:00:11]}  Rf8 {[%clk 0:00:15]} 36. gxf4 {[%clk 0:00:10]}  Qxh4 {[%clk 0:00:16]} 37. f5 {[%clk 0:00:10]}  Nc4 {[%clk 0:00:09]} 38. Rg1 {[%clk 0:00:09]}  g5 {[%clk 0:00:06]} 39. Bf1 {[%clk 0:00:09]}  Nd6 {[%clk 0:00:06]} 40. Bxa6 {[%clk 0:00:08]}  Qxe4 {[%clk 0:00:05]} 41. Qxe4 {[%clk 0:00:08]}  Nxe4 {[%clk 0:00:06]} 42. Rc2 {[%clk 0:00:08]}  Rfd8 {[%clk 0:00:06]} 43. Rd1 {[%clk 0:00:07]}  Nd6 {[%clk 0:00:06]} 44. Ba3 {[%clk 0:00:07]}  Nxf5 {[%clk 0:00:06]} 45. Re2 {[%clk 0:00:04]}  Rb6 {[%clk 0:00:05]} 46. Bc4 {[%clk 0:00:03]}  Nd6 {[%clk 0:00:06]} 47. Bxd6 {[%clk 0:00:03]}  Rxd6 {[%clk 0:00:06]} 48. Red2 {[%clk 0:00:02]}  f5 {[%clk 0:00:06]} 49. Bf1 {[%clk 0:00:03]}  e4 {[%clk 0:00:07]} 50. Bg2 {[%clk 0:00:04]}  Kf6 {[%clk 0:00:07]} 51. Rf1 {[%clk 0:00:04]}  Ke5 {[%clk 0:00:08]} 52. Rdf2 {[%clk 0:00:04]}  Rf6 {[%clk 0:00:08]} 53. Re1 {[%clk 0:00:04]}  Rb4 {[%clk 0:00:08]} 54. Rd2 {[%clk 0:00:04]}  Rd6 {[%clk 0:00:08]} 55. Red1 {[%clk 0:00:04]}  h5 {[%clk 0:00:09]} 56. Kg3 {[%clk 0:00:04]}  h4+ {[%clk 0:00:09]} 57. Kf2 {[%clk 0:00:04]}  Rc4 {[%clk 0:00:10]} 58. Ke1 {[%clk 0:00:04]}  Rc3 {[%clk 0:00:11]} 59. Bf1 {[%clk 0:00:04]}  Re3+ {[%clk 0:00:11]} 60. Kf2 {[%clk 0:00:04]}  Rc3 {[%clk 0:00:11]} 61. Kg1 {[%clk 0:00:05]}  f4 {[%clk 0:00:11]} 62. Rg2 {[%clk 0:00:05]}  Rg3 {[%clk 0:00:08]} 63. Kh2 {[%clk 0:00:04]}  Rxd5 {[%clk 0:00:05]} 64. Re1 {[%clk 0:00:04]}  Rc5 {[%clk 0:00:05]} 65. Rge2 {[%clk 0:00:04]}  e3 {[%clk 0:00:05]} 66. Bg2 {[%clk 0:00:04]}  Rc3 {[%clk 0:00:04]} 67. Rf1 {[%clk 0:00:04]}  Kd4 {[%clk 0:00:04]} 68. Rb2 {[%clk 0:00:04]}  Kc5 {[%clk 0:00:02]} 69. a4 {[%clk 0:00:03]}  Kd4 {[%clk 0:00:03]} 70. Rd1+ {[%clk 0:00:03]}  Rd3 {[%clk 0:00:03]} 71. Rxd3+ {[%clk 0:00:02]}  Kxd3 {[%clk 0:00:04]} 72. Bf1+ {[%clk 0:00:02]}  Kc3 {[%clk 0:00:04]} 73. Rb7 {[%clk 0:00:03]}  f3 {[%clk 0:00:05]} 74. Rxc7 {[%clk 0:00:03]}  e2 {[%clk 0:00:05]} 75. Bxe2 {[%clk 0:00:03]}  fxe2 {[%clk 0:00:06]} 76. Re7 {[%clk 0:00:04]}  Kd2 {[%clk 0:00:07]} 77. c7 {[%clk 0:00:04]}  Rc3 {[%clk 0:00:07]} 78. Rd7+ {[%clk 0:00:04]}  Ke1 {[%clk 0:00:08]} 79. Kg2 {[%clk 0:00:04]}  Rg3+ {[%clk 0:00:07]} 80. Kh1 {[%clk 0:00:05]}  Rc3 {[%clk 0:00:08]} 81. Kg2 {[%clk 0:00:05]}  Rc4 {[%clk 0:00:09]} 82. Re7 {[%clk 0:00:04]}  g4 {[%clk 0:00:05]} 83. hxg4 {[%clk 0:00:04]}  Rxg4+ {[%clk 0:00:06]} 84. Kh2 {[%clk 0:00:05]}  Rc4 {[%clk 0:00:06]} 85. Kh3 {[%clk 0:00:04]}  Kf2 {[%clk 0:00:06]} 86. Rf7+ {[%clk 0:00:05]}  Ke3 {[%clk 0:00:06]} 87. Re7+ {[%clk 0:00:06]}  Kd2 {[%clk 0:00:06]} 88. Rd7+ {[%clk 0:00:06]}  Kc1 {[%clk 0:00:07]} 89. Re7 {[%clk 0:00:07]}  Kd1 {[%clk 0:00:03]} 90. Rd7+ {[%clk 0:00:06]}  Ke1 {[%clk 0:00:04]} 91. Re7 {[%clk 0:00:06]}  Kf1 {[%clk 0:00:02]} 92. Rf7+ {[%clk 0:00:06]}  Kg1 {[%clk 0:00:03]} 93. Rg7+ {[%clk 0:00:06]}  Kh1 {[%clk 0:00:03]} 94. Re7 {[%clk 0:00:06]}  Rxc7 {[%clk 0:00:04]} 95. Rxe2 {[%clk 0:00:06]}  Rc3+ {[%clk 0:00:04]} 96. Kxh4 {[%clk 0:00:07]}  Rc4+ {[%clk 0:00:05]} 97. Kg3 {[%clk 0:00:07]}  Rxa4 {[%clk 0:00:05]} 98. Re5 {[%clk 0:00:07]}  Ra3+ {[%clk 0:00:05]} 99. Kf2 {[%clk 0:00:08]}  Ra2+ {[%clk 0:00:05]} 100. Kf1 {[%clk 0:00:08]}  Kh2 {[%clk 0:00:05]} 101. Ke1 {[%clk 0:00:08]}  Kg3 {[%clk 0:00:05]} 102. Kd1 {[%clk 0:00:08]}  Kf4 {[%clk 0:00:05]} 103. Re8 {[%clk 0:00:08]}  Rb2 {[%clk 0:00:05]} 104. Kc1 {[%clk 0:00:09]}  Rb5 {[%clk 0:00:06]} 105. Kc2 {[%clk 0:00:09]}  Re5 {[%clk 0:00:04]} 106. Rxe5 {[%clk 0:00:09]}  Kxe5 {[%clk 0:00:05]} 107. Kb3 {[%clk 0:00:10]}  Kd6 {[%clk 0:00:06]} 108. Ka4 {[%clk 0:00:11]}  Kc6 {[%clk 0:00:07]} 109. Kxa5 {[%clk 0:00:12]} 1/2-1/2


[Site "https://www.chess.com"]

[Event "Titled Tuesday Blitz November 14 Late 2023"]
[White "Henriquez Villagra, Cristobal"]
[Black "Andreikin, Dmitry"]
[WhiteFideId "3409350"]
[BlackFideId "4158814"]
[WhiteElo "2864"]
[BlackElo "3119"]
[Result "0-1"]
[Round "8"]
[TimeControl "180+1"]
[Date "2023.11.14"]
[WhiteClock "0:00:02"]
[BlackClock "0:00:20"]
[Board "7"]

1. e4 {[%clk 0:02:56]}  e5 {[%clk 0:02:58]} 2. Nf3 {[%clk 0:02:56]}  Nc6 {[%clk 0:02:58]} 3. g3 {[%clk 0:02:56]}  Nf6 {[%clk 0:02:54]} 4. d3 {[%clk 0:02:56]}  Bc5 {[%clk 0:02:55]} 5. Bg2 {[%clk 0:02:56]}  O-O {[%clk 0:02:55]} 6. O-O {[%clk 0:02:55]}  d6 {[%clk 0:02:54]} 7. h3 {[%clk 0:02:48]}  Ne7 {[%clk 0:02:50]} 8. Nc3 {[%clk 0:02:37]}  c6 {[%clk 0:02:45]} 9. Bg5 {[%clk 0:01:21]}  Ng6 {[%clk 0:02:44]} 10. Nh4 {[%clk 0:01:21]}  h6 {[%clk 0:02:24]} 11. Nxg6 {[%clk 0:01:21]}  fxg6 {[%clk 0:02:24]} 12. Bd2 {[%clk 0:01:17]}  g5 {[%clk 0:02:23]} 13. Na4 {[%clk 0:01:08]}  g4 {[%clk 0:02:14]} 14. Nxc5 {[%clk 0:01:02]}  gxh3 {[%clk 0:02:10]} 15. Nxb7 {[%clk 0:00:52]}  Qc7 {[%clk 0:02:08]} 16. Bf3 {[%clk 0:00:50]}  Qxb7 {[%clk 0:02:05]} 17. b3 {[%clk 0:00:48]}  Qf7 {[%clk 0:02:05]} 18. Kh2 {[%clk 0:00:44]}  Qg6 {[%clk 0:02:04]} 19. Be2 {[%clk 0:00:44]}  Ng4+ {[%clk 0:01:58]} 20. Bxg4 {[%clk 0:00:44]}  Bxg4 {[%clk 0:01:57]} 21. f3 {[%clk 0:00:41]}  Be6 {[%clk 0:01:48]} 22. Qe2 {[%clk 0:00:36]}  Rf6 {[%clk 0:01:46]} 23. f4 {[%clk 0:00:26]}  Bg4 {[%clk 0:01:45]} 24. Qe3 {[%clk 0:00:25]}  a6 {[%clk 0:01:22]} 25. Rf2 {[%clk 0:00:25]}  Raf8 {[%clk 0:01:21]} 26. Raf1 {[%clk 0:00:25]}  Qh5 {[%clk 0:01:19]} 27. Bc3 {[%clk 0:00:24]}  R6f7 {[%clk 0:01:02]} 28. b4 {[%clk 0:00:24]}  Kh7 {[%clk 0:00:55]} 29. Ba1 {[%clk 0:00:24]}  Be6 {[%clk 0:00:43]} 30. c4 {[%clk 0:00:21]}  Qg4 {[%clk 0:00:43]} 31. f5 {[%clk 0:00:20]}  Bc8 {[%clk 0:00:42]} 32. c5 {[%clk 0:00:20]}  dxc5 {[%clk 0:00:32]} 33. Qxc5 {[%clk 0:00:18]}  Rd8 {[%clk 0:00:31]} 34. Rf3 {[%clk 0:00:18]}  Rfd7 {[%clk 0:00:25]} 35. Qc4 {[%clk 0:00:02]}  Rxd3 {[%clk 0:00:20]} 0-1


[Site "https://www.chess.com"]

[Event "Titled Tuesday Blitz November 14 Late 2023"]
[White "Bazeev, German"]
[Black "Alekseenko, Kirill"]
[WhiteFideId "24119350"]
[BlackFideId "4135539"]
[WhiteElo "2825"]
[BlackElo "2962"]
[Result "1-0"]
[Round "8"]
[TimeControl "180+1"]
[Date "2023.11.14"]
[WhiteClock "0:00:05"]
[BlackClock "0:00:03"]
[Board "10"]

1. c4 {[%clk 0:02:59]}  e5 {[%clk 0:02:59]} 2. Nc3 {[%clk 0:02:59]}  d6 {[%clk 0:02:59]} 3. Nf3 {[%clk 0:02:58]}  f5 {[%clk 0:02:58]} 4. d4 {[%clk 0:02:59]}  e4 {[%clk 0:02:58]} 5. Ng5 {[%clk 0:02:59]}  Be7 {[%clk 0:02:59]} 6. h4 {[%clk 0:03:00]}  Nf6 {[%clk 0:02:58]} 7. Nh3 {[%clk 0:02:53]}  O-O {[%clk 0:02:57]} 8. Nf4 {[%clk 0:02:53]}  c5 {[%clk 0:02:55]} 9. d5 {[%clk 0:02:39]}  Na6 {[%clk 0:02:55]} 10. e3 {[%clk 0:02:37]}  Ng4 {[%clk 0:02:51]} 11. h5 {[%clk 0:02:31]}  Nc7 {[%clk 0:02:47]} 12. Be2 {[%clk 0:02:29]}  Ne5 {[%clk 0:02:48]} 13. b3 {[%clk 0:02:12]}  Bf6 {[%clk 0:02:47]} 14. Bb2 {[%clk 0:02:12]}  Bd7 {[%clk 0:02:48]} 15. Qd2 {[%clk 0:02:10]}  a6 {[%clk 0:02:47]} 16. a4 {[%clk 0:02:07]}  b6 {[%clk 0:02:45]} 17. f3 {[%clk 0:02:02]}  exf3 {[%clk 0:02:30]} 18. gxf3 {[%clk 0:02:02]}  Rb8 {[%clk 0:02:31]} 19. Rg1 {[%clk 0:01:53]}  Re8 {[%clk 0:02:11]} 20. Kd1 {[%clk 0:01:51]}  Qe7 {[%clk 0:02:06]} 21. h6 {[%clk 0:01:40]}  g6 {[%clk 0:02:03]} 22. Nh5 {[%clk 0:01:40]}  Bh8 {[%clk 0:02:00]} 23. Ng7 {[%clk 0:01:41]}  Bxg7 {[%clk 0:01:59]} 24. hxg7 {[%clk 0:01:41]}  b5 {[%clk 0:01:45]} 25. axb5 {[%clk 0:01:40]}  axb5 {[%clk 0:01:46]} 26. Ra7 {[%clk 0:01:40]}  Qd8 {[%clk 0:01:43]} 27. e4 {[%clk 0:01:37]}  bxc4 {[%clk 0:01:38]} 28. Rh1 {[%clk 0:01:35]}  Nf7 {[%clk 0:01:30]} 29. Bxc4 {[%clk 0:01:29]}  Ra8 {[%clk 0:01:15]} 30. Qh2 {[%clk 0:01:28]}  h6 {[%clk 0:01:13]} 31. Rxa8 {[%clk 0:01:24]}  Nxa8 {[%clk 0:01:14]} 32. Qg3 {[%clk 0:01:11]}  g5 {[%clk 0:01:11]} 33. f4 {[%clk 0:00:22]}  fxe4 {[%clk 0:00:36]} 34. fxg5 {[%clk 0:00:22]}  Ne5 {[%clk 0:00:24]} 35. gxh6 {[%clk 0:00:20]}  Bg4+ {[%clk 0:00:22]} 36. Qxg4 {[%clk 0:00:09]}  Nxg4 {[%clk 0:00:22]} 37. Nxe4 {[%clk 0:00:09]}  Kh7 {[%clk 0:00:17]} 38. Bd3 {[%clk 0:00:07]}  Ne3+ {[%clk 0:00:15]} 39. Kc1 {[%clk 0:00:07]}  Nf5 {[%clk 0:00:10]} 40. Kb1 {[%clk 0:00:04]}  Nc7 {[%clk 0:00:08]} 41. Ng3 {[%clk 0:00:03]}  Re1+ {[%clk 0:00:02]} 42. Rxe1 {[%clk 0:00:03]}  Kxh6 {[%clk 0:00:03]} 43. Nxf5+ {[%clk 0:00:03]}  Kh5 {[%clk 0:00:04]} 44. Rh1+ {[%clk 0:00:03]}  Kg4 {[%clk 0:00:04]} 45. Rg1+ {[%clk 0:00:04]}  Kf3 {[%clk 0:00:03]} 46. g8=Q {[%clk 0:00:05]} 1-0


[Site "https://www.chess.com"]